[Event "Titled Tuesday Blitz May 23 Late 2023"]
[White "Safin, Robert"]
[Black "Sailer, Mike"]
[WhiteFideId "34189120"]
[BlackFideId "2012901"]
[WhiteElo "2295"]
[BlackElo "2109"]
[Result "1-0"]
[Round "01"]
[TimeControl "180+2"]
[Date "2023.05.23"]
[WhiteClock "0:01:10"]
[BlackClock "0:00:00"]

1. e4 {[%clk 0:03:00]}  d5 {[%clk 0:02:58]} 2. exd5 {[%clk 0:02:59]}  Qxd5 {[%clk 0:02:57]} 3. Nc3 {[%clk 0:03:00]}  Qd6 {[%clk 0:02:57]} 4. Nf3 {[%clk 0:02:59]}  Nf6 {[%clk 0:02:58]} 5. d4 {[%clk 0:02:57]}  c6 {[%clk 0:02:58]} 6. Ne5 {[%clk 0:02:54]}  Nbd7 {[%clk 0:02:58]} 7. Bf4 {[%clk 0:02:53]}  Nxe5 {[%clk 0:02:56]} 8. Bxe5 {[%clk 0:02:51]}  Qb4 {[%clk 0:02:50]} 9. Qd3 {[%clk 0:02:12]}  Bf5 {[%clk 0:02:18]} 10. Qxf5 {[%clk 0:01:47]}  Qxb2 {[%clk 0:02:18]} 11. Kd2 {[%clk 0:01:47]}  Qxa1 {[%clk 0:02:06]} 12. Ba6 {[%clk 0:01:46]}  Qxc3+ {[%clk 0:01:38]} 13. Kxc3 {[%clk 0:01:43]}  Nd5+ {[%clk 0:01:30]} 14. Kd2 {[%clk 0:01:32]}  bxa6 {[%clk 0:01:15]} 15. Rb1 {[%clk 0:01:30]}  e6 {[%clk 0:01:13]} 16. Qd3 {[%clk 0:01:28]}  Bb4+ {[%clk 0:01:05]} 17. Kc1 {[%clk 0:01:26]}  Be7 {[%clk 0:00:29]} 18. Bxg7 {[%clk 0:01:21]}  Rg8 {[%clk 0:00:14]} 19. Qxh7 {[%clk 0:01:20]}  O-O-O {[%clk 0:00:10]} 20. g3 {[%clk 0:01:18]}  Ba3+ {[%clk 0:00:08]} 21. Kd2 {[%clk 0:01:15]}  Bb4+ {[%clk 0:00:05]} 22. Kd3 {[%clk 0:01:11]}  a5 {[%clk 0:00:00]} 23. Be5 {[%clk 0:01:10]} 1-0


[Site "https://www.chess.com"]

[Event "Titled Tuesday Blitz May 23 Late 2023"]
[White "Ottosen, David"]
[Black "Bruedigam, Martin"]
[WhiteFideId "2603080"]
[BlackFideId "24608033"]
[WhiteElo "2018"]
[BlackElo "2331"]
[Result "0-1"]
[Round "01"]
[TimeControl "180+2"]
[Date "2023.05.23"]
[WhiteClock "0:00:03"]
[BlackClock "0:00:08"]

1. e4 {[%clk 0:03:00]}  c6 {[%clk 0:03:00]} 2. d4 {[%clk 0:02:59]}  d5 {[%clk 0:03:00]} 3. e5 {[%clk 0:03:00]}  Bf5 {[%clk 0:03:00]} 4. Nf3 {[%clk 0:03:00]}  e6 {[%clk 0:03:00]} 5. Be2 {[%clk 0:03:00]}  Nd7 {[%clk 0:03:01]} 6. O-O {[%clk 0:03:00]}  a5 {[%clk 0:03:01]} 7. Re1 {[%clk 0:03:00]}  a4 {[%clk 0:03:02]} 8. a3 {[%clk 0:02:59]}  h6 {[%clk 0:02:57]} 9. Be3 {[%clk 0:02:59]}  Qb6 {[%clk 0:02:55]} 10. Qc1 {[%clk 0:02:57]}  Ne7 {[%clk 0:02:53]} 11. Nbd2 {[%clk 0:02:56]}  Bh7 {[%clk 0:02:53]} 12. Nf1 {[%clk 0:02:56]}  Ng6 {[%clk 0:02:50]} 13. Ng3 {[%clk 0:02:54]}  Be7 {[%clk 0:02:51]} 14. c3 {[%clk 0:02:54]}  O-O {[%clk 0:02:50]} 15. Bxh6 {[%clk 0:02:47]}  gxh6 {[%clk 0:02:20]} 16. Qxh6 {[%clk 0:02:46]}  Rfc8 {[%clk 0:02:18]} 17. Nh5 {[%clk 0:02:31]}  Bf8 {[%clk 0:02:18]} 18. Qg5 {[%clk 0:02:31]}  Qd8 {[%clk 0:02:17]} 19. Qg3 {[%clk 0:02:29]}  Be7 {[%clk 0:01:58]} 20. Bd3 {[%clk 0:02:24]}  Qf8 {[%clk 0:01:54]} 21. Ng5 {[%clk 0:02:20]}  Qh6 {[%clk 0:01:51]} 22. Nxh7 {[%clk 0:01:54]}  Kxh7 {[%clk 0:01:48]} 23. Nf4 {[%clk 0:01:50]}  Nf8 {[%clk 0:01:12]} 24. Re3 {[%clk 0:01:39]}  Bg5 {[%clk 0:00:58]} 25. Rf3 {[%clk 0:01:34]}  Kg7 {[%clk 0:00:56]} 26. Nh3 {[%clk 0:01:14]}  Be7 {[%clk 0:00:32]} 27. Rf4 {[%clk 0:00:49]}  c5 {[%clk 0:00:25]} 28. Rg4 {[%clk 0:00:46]}  cxd4 {[%clk 0:00:23]} 29. cxd4 {[%clk 0:00:44]}  Rc1+ {[%clk 0:00:22]} 30. Rxc1 {[%clk 0:00:42]}  Qxc1+ {[%clk 0:00:23]} 31. Bf1 {[%clk 0:00:43]}  Rc8 {[%clk 0:00:21]} 32. Nf4 {[%clk 0:00:42]}  Qd2 {[%clk 0:00:11]} 33. h4 {[%clk 0:00:41]}  Rc1 {[%clk 0:00:10]} 34. h5 {[%clk 0:00:11]}  Rxf1+ {[%clk 0:00:09]} 35. Kh2 {[%clk 0:00:12]}  Qd1 {[%clk 0:00:10]} 36. Rxg6+ {[%clk 0:00:10]}  fxg6 {[%clk 0:00:09]} 37. Nxe6+ {[%clk 0:00:09]}  Nxe6 {[%clk 0:00:07]} 38. Qxg6+ {[%clk 0:00:10]}  Kf8 {[%clk 0:00:08]} 39. Qxe6 {[%clk 0:00:09]}  Rh1+ {[%clk 0:00:07]} 40. Kg3 {[%clk 0:00:10]}  Qxh5 {[%clk 0:00:07]} 41. Qc8+ {[%clk 0:00:09]}  Kf7 {[%clk 0:00:07]} 42. e6+ {[%clk 0:00:03]}  Kf6 {[%clk 0:00:08]} 0-1


[Site "https://www.chess.com"]

[Event "Titled Tuesday Blitz May 23 Late 2023"]
[White "Meunier-Pion, Jean"]
[Black "Dmitriev, Sergey"]
[WhiteFideId "20685327"]
[BlackFideId "14101785"]
[WhiteElo "2124"]
[BlackElo "2132"]
[Result "1-0"]
[Round "01"]
[TimeControl "180+2"]
[Date "2023.05.23"]
[WhiteClock "0:01:02"]
[BlackClock "0:01:31"]

1. e4 {[%clk 0:02:55]}  e5 {[%clk 0:02:58]} 2. Nf3 {[%clk 0:02:54]}  Nc6 {[%clk 0:02:57]} 3. Bb5 {[%clk 0:02:55]}  a6 {[%clk 0:02:56]} 4. Ba4 {[%clk 0:02:54]}  Nf6 {[%clk 0:02:56]} 5. d3 {[%clk 0:02:54]}  Be7 {[%clk 0:02:54]} 6. Bxc6 {[%clk 0:02:50]}  dxc6 {[%clk 0:02:54]} 7. Nxe5 {[%clk 0:02:50]}  Qd4 {[%clk 0:02:52]} 8. Nf3 {[%clk 0:02:49]}  Qd8 {[%clk 0:02:51]} 9. h3 {[%clk 0:02:48]}  O-O {[%clk 0:02:51]} 10. O-O {[%clk 0:02:48]}  h6 {[%clk 0:02:47]} 11. Be3 {[%clk 0:02:47]}  Nh7 {[%clk 0:02:47]} 12. Nc3 {[%clk 0:02:42]}  Ng5 {[%clk 0:02:43]} 13. Nxg5 {[%clk 0:02:40]}  Bxg5 {[%clk 0:02:43]} 14. Bxg5 {[%clk 0:02:40]}  Qxg5 {[%clk 0:02:43]} 15. f4 {[%clk 0:02:41]}  Qg6 {[%clk 0:02:37]} 16. f5 {[%clk 0:02:38]}  Qg5 {[%clk 0:02:33]} 17. Qc1 {[%clk 0:02:35]}  Qg3 {[%clk 0:02:32]} 18. Ne2 {[%clk 0:02:14]}  Qd6 {[%clk 0:02:27]} 19. f6 {[%clk 0:02:06]}  Qe5 {[%clk 0:02:21]} 20. fxg7 {[%clk 0:02:00]}  Qxg7 {[%clk 0:02:20]} 21. Rf3 {[%clk 0:01:53]}  Kh7 {[%clk 0:02:20]} 22. d4 {[%clk 0:01:37]}  Bd7 {[%clk 0:02:09]} 23. Qf4 {[%clk 0:01:30]}  Qg5 {[%clk 0:01:53]} 24. Raf1 {[%clk 0:01:24]}  Rg8 {[%clk 0:01:49]} 25. Qxg5 {[%clk 0:01:20]}  Rxg5 {[%clk 0:01:46]} 26. Rxf7+ {[%clk 0:01:19]}  Rg7 {[%clk 0:01:46]} 27. Ng3 {[%clk 0:01:06]}  Rg8 {[%clk 0:01:42]} 28. Nh5 {[%clk 0:01:04]}  Rxf7 {[%clk 0:01:40]} 29. Rxf7+ {[%clk 0:01:05]}  Kg6 {[%clk 0:01:39]} 30. Rxd7 {[%clk 0:01:04]}  Kxh5 {[%clk 0:01:39]} 31. Rxc7 {[%clk 0:01:04]}  Rb8 {[%clk 0:01:40]} 32. e5 {[%clk 0:01:03]}  Kg5 {[%clk 0:01:40]} 33. Rf7 {[%clk 0:01:03]}  Kg6 {[%clk 0:01:38]} 34. Rf6+ {[%clk 0:01:02]}  Kg7 {[%clk 0:01:38]} 35. Kf2 {[%clk 0:01:03]}  b6 {[%clk 0:01:34]} 36. Ke3 {[%clk 0:01:03]}  Rd8 {[%clk 0:01:31]} 37. Rxc6 {[%clk 0:01:02]} 1-0


[Site "https://www.chess.com"]

[Event "Titled Tuesday Blitz May 23 Late 2023"]
[White "Castillo Pena, Patricia Evarista"]
[Black "Reprintsev, Alexander"]
[WhiteFideId "6412106"]
[BlackFideId "14100541"]
[WhiteElo "1919"]
[BlackElo "2218"]
[Result "0-1"]
[Round "01"]
[TimeControl "180+2"]
[Date "2023.05.23"]
[WhiteClock "0:00:00"]
[BlackClock "0:00:42"]

1. d4 {[%clk 0:02:58]}  d5 {[%clk 0:02:59]} 2. Nf3 {[%clk 0:02:58]}  Nc6 {[%clk 0:02:58]} 3. e3 {[%clk 0:02:57]}  Bg4 {[%clk 0:02:57]} 4. Be2 {[%clk 0:02:51]}  e6 {[%clk 0:02:57]} 5. O-O {[%clk 0:02:51]}  f5 {[%clk 0:02:56]} 6. b3 {[%clk 0:02:51]}  Nf6 {[%clk 0:02:56]} 7. Bb2 {[%clk 0:02:50]}  Be7 {[%clk 0:02:54]} 8. h3 {[%clk 0:02:50]}  Bxf3 {[%clk 0:02:53]} 9. Bxf3 {[%clk 0:02:50]}  O-O {[%clk 0:02:53]} 10. Nd2 {[%clk 0:02:50]}  Ne4 {[%clk 0:02:52]} 11. c4 {[%clk 0:02:47]}  Bf6 {[%clk 0:02:52]} 12. Rc1 {[%clk 0:02:38]}  Qe8 {[%clk 0:02:06]} 13. a3 {[%clk 0:02:36]}  Qg6 {[%clk 0:02:04]} 14. Qe2 {[%clk 0:02:21]}  Qh6 {[%clk 0:02:02]} 15. b4 {[%clk 0:02:09]}  Rf7 {[%clk 0:02:02]} 16. Rc2 {[%clk 0:02:05]}  g5 {[%clk 0:01:58]} 17. Rfc1 {[%clk 0:02:01]}  Rg7 {[%clk 0:01:53]} 18. cxd5 {[%clk 0:01:50]}  exd5 {[%clk 0:01:53]} 19. b5 {[%clk 0:01:50]}  Ne7 {[%clk 0:01:49]} 20. Rxc7 {[%clk 0:01:48]}  Rf8 {[%clk 0:01:43]} 21. Bxe4 {[%clk 0:01:36]}  dxe4 {[%clk 0:01:40]} 22. Nf1 {[%clk 0:01:26]}  g4 {[%clk 0:01:40]} 23. hxg4 {[%clk 0:01:25]}  Bh4 {[%clk 0:01:35]} 24. Ng3 {[%clk 0:01:09]}  f4 {[%clk 0:01:29]} 25. Nxe4 {[%clk 0:00:55]}  fxe3 {[%clk 0:01:27]} 26. fxe3 {[%clk 0:00:43]}  Qe6 {[%clk 0:01:16]} 27. Rf1 {[%clk 0:00:18]}  Rxf1+ {[%clk 0:01:10]} 28. Qxf1 {[%clk 0:00:16]}  Qxe4 {[%clk 0:01:09]} 29. d5 {[%clk 0:00:16]}  Qxe3+ {[%clk 0:00:57]} 30. Kh1 {[%clk 0:00:16]}  Rf7 {[%clk 0:00:54]} 31. Qc1 {[%clk 0:00:14]}  Qxc1+ {[%clk 0:00:53]} 32. Rxc1 {[%clk 0:00:14]}  Nxd5 {[%clk 0:00:47]} 33. Rc8+ {[%clk 0:00:14]}  Rf8 {[%clk 0:00:48]} 34. Rxf8+ {[%clk 0:00:14]}  Kxf8 {[%clk 0:00:48]} 35. Kh2 {[%clk 0:00:14]}  Nc7 {[%clk 0:00:43]} 36. a4 {[%clk 0:00:13]}  Ne6 {[%clk 0:00:43]} 37. Kh3 {[%clk 0:00:13]}  Be7 {[%clk 0:00:43]} 38. Kg3 {[%clk 0:00:10]}  Bb4 {[%clk 0:00:43]} 39. Kf3 {[%clk 0:00:09]}  Nc5 {[%clk 0:00:43]} 40. Bd4 {[%clk 0:00:00]}  b6 {[%clk 0:00:42]} 0-1


[Site "https://www.chess.com"]

[Event "Titled Tuesday Blitz May 23 Late 2023"]
[White "Chos, Alexey"]
[Black "Burke, Paul"]
[WhiteFideId "14117762"]
[BlackFideId "2605767"]
[WhiteElo "2234"]
[BlackElo "1892"]
[Result "1-0"]
[Round "01"]
[TimeControl "180+2"]
[Date "2023.05.23"]
[WhiteClock "0:00:05"]
[BlackClock "0:00:00"]

1. Nf3 {[%clk 0:02:58]}  a6 {[%clk 0:02:58]} 2. b3 {[%clk 0:02:54]}  d6 {[%clk 0:02:58]} 3. Bb2 {[%clk 0:02:54]}  Nd7 {[%clk 0:02:56]} 4. e4 {[%clk 0:02:54]}  Ngf6 {[%clk 0:02:51]} 5. d3 {[%clk 0:02:53]}  e5 {[%clk 0:02:51]} 6. Nbd2 {[%clk 0:02:53]}  g6 {[%clk 0:02:51]} 7. Be2 {[%clk 0:02:52]}  Bg7 {[%clk 0:02:51]} 8. O-O {[%clk 0:02:50]}  O-O {[%clk 0:02:51]} 9. d4 {[%clk 0:02:50]}  Re8 {[%clk 0:02:47]} 10. Bd3 {[%clk 0:02:46]}  Nh5 {[%clk 0:02:43]} 11. Re1 {[%clk 0:02:37]}  Nf4 {[%clk 0:02:42]} 12. Bc4 {[%clk 0:02:37]}  b5 {[%clk 0:02:40]} 13. Bf1 {[%clk 0:02:35]}  f5 {[%clk 0:02:33]} 14. g3 {[%clk 0:02:31]}  fxe4 {[%clk 0:02:28]} 15. Nxe4 {[%clk 0:02:28]}  d5 {[%clk 0:02:09]} 16. Neg5 {[%clk 0:02:18]}  e4 {[%clk 0:02:01]} 17. gxf4 {[%clk 0:02:17]}  exf3 {[%clk 0:01:59]} 18. Qxf3 {[%clk 0:02:17]}  Nf6 {[%clk 0:01:50]} 19. Re5 {[%clk 0:02:03]}  h6 {[%clk 0:01:39]} 20. Nh3 {[%clk 0:01:38]}  Ne4 {[%clk 0:01:25]} 21. Rxe8+ {[%clk 0:01:28]}  Qxe8 {[%clk 0:01:24]} 22. c4 {[%clk 0:01:27]}  Nd2 {[%clk 0:00:57]} 23. Qxd5+ {[%clk 0:01:00]}  Be6 {[%clk 0:00:56]} 24. Qg2 {[%clk 0:01:00]}  Nxf1 {[%clk 0:00:41]} 25. Rxf1 {[%clk 0:00:59]}  Bf5 {[%clk 0:00:29]} 26. Qf3 {[%clk 0:00:49]}  Rd8 {[%clk 0:00:21]} 27. Rc1 {[%clk 0:00:23]}  Qd7 {[%clk 0:00:19]} 28. Qd5+ {[%clk 0:00:19]}  Qxd5 {[%clk 0:00:18]} 29. cxd5 {[%clk 0:00:20]}  Bxh3 {[%clk 0:00:18]} 30. Rxc7 {[%clk 0:00:19]}  Rxd5 {[%clk 0:00:16]} 31. Rc6 {[%clk 0:00:08]}  Bxd4 {[%clk 0:00:12]} 32. Bxd4 {[%clk 0:00:08]}  Rxd4 {[%clk 0:00:11]} 33. f3 {[%clk 0:00:09]}  Rd1+ {[%clk 0:00:09]} 34. Kf2 {[%clk 0:00:09]}  Rd2+ {[%clk 0:00:09]} 35. Kg3 {[%clk 0:00:09]}  Bf5 {[%clk 0:00:08]} 36. Rxa6 {[%clk 0:00:09]}  h5 {[%clk 0:00:07]} 37. a4 {[%clk 0:00:06]}  bxa4 {[%clk 0:00:06]} 38. bxa4 {[%clk 0:00:07]}  Ra2 {[%clk 0:00:06]} 39. a5 {[%clk 0:00:07]}  Bd3 {[%clk 0:00:05]} 40. Ra7 {[%clk 0:00:07]}  Ra4 {[%clk 0:00:03]} 41. Rd7 {[%clk 0:00:04]}  Bf5 {[%clk 0:00:02]} 42. Ra7 {[%clk 0:00:04]}  Bd3 {[%clk 0:00:01]} 43. h3 {[%clk 0:00:05]}  Bf5 {[%clk 0:00:01]} 44. Kh4 {[%clk 0:00:03]}  Bd3 {[%clk 0:00:01]} 45. Kg5 {[%clk 0:00:03]}  Bf5 {[%clk 0:00:01]} 46. h4 {[%clk 0:00:03]}  Bd3 {[%clk 0:00:01]} 47. Ra8+ {[%clk 0:00:04]}  Kf7 {[%clk 0:00:01]} 48. Ra7+ {[%clk 0:00:05]}  Kg8 {[%clk 0:00:00]} 49. a6 {[%clk 0:00:05]} 1-0


[Site "https://www.chess.com"]

[Event "Titled Tuesday Blitz May 23 Late 2023"]
[White "HamedWafa4"]
[Black "Duda, Jan-Krzysztof"]
[BlackFideId "1170546"]
[WhiteElo "2630"]
[BlackElo "2790"]
[Result "0-1"]
[Round "02"]
[TimeControl "180+2"]
[Date "2023.05.23"]
[WhiteClock "0:00:00"]
[BlackClock "0:01:39"]

1. e4 {[%clk 0:03:00]}  c6 {[%clk 0:02:59]} 2. d4 {[%clk 0:02:58]}  d5 {[%clk 0:03:00]} 3. e5 {[%clk 0:02:58]}  Bf5 {[%clk 0:02:59]} 4. h4 {[%clk 0:02:58]}  h5 {[%clk 0:02:59]} 5. Bd3 {[%clk 0:02:57]}  Bxd3 {[%clk 0:02:59]} 6. Qxd3 {[%clk 0:02:58]}  e6 {[%clk 0:02:58]} 7. Nf3 {[%clk 0:02:56]}  Qa5+ {[%clk 0:02:57]} 8. Nbd2 {[%clk 0:02:54]}  Qa6 {[%clk 0:02:58]} 9. c4 {[%clk 0:02:54]}  Nh6 {[%clk 0:02:57]} 10. O-O {[%clk 0:02:53]}  Nd7 {[%clk 0:02:55]} 11. b3 {[%clk 0:02:53]}  Ba3 {[%clk 0:02:52]} 12. Bxa3 {[%clk 0:02:36]}  Qxa3 {[%clk 0:02:53]} 13. c5 {[%clk 0:02:24]}  b6 {[%clk 0:02:49]} 14. Nb1 {[%clk 0:02:02]}  Qa5 {[%clk 0:02:47]} 15. a3 {[%clk 0:01:48]}  bxc5 {[%clk 0:02:44]} 16. dxc5 {[%clk 0:01:48]}  Qxc5 {[%clk 0:02:39]} 17. Rc1 {[%clk 0:01:44]}  Qb6 {[%clk 0:02:39]} 18. Nc3 {[%clk 0:01:38]}  Ng4 {[%clk 0:02:39]} 19. Qe2 {[%clk 0:01:33]}  Nc5 {[%clk 0:02:34]} 20. Rab1 {[%clk 0:01:28]}  a5 {[%clk 0:02:32]} 21. Ng5 {[%clk 0:00:59]}  Nd7 {[%clk 0:02:29]} 22. Na4 {[%clk 0:00:55]}  Qc7 {[%clk 0:02:29]} 23. f4 {[%clk 0:00:52]}  Qa7+ {[%clk 0:02:28]} 24. Kh1 {[%clk 0:00:49]}  Rc8 {[%clk 0:02:27]} 25. f5 {[%clk 0:00:39]}  Ndxe5 {[%clk 0:02:16]} 26. fxe6 {[%clk 0:00:37]}  Nf2+ {[%clk 0:02:17]} 27. Kh2 {[%clk 0:00:37]}  Neg4+ {[%clk 0:02:17]} 28. Kg1 {[%clk 0:00:28]}  Ne4+ {[%clk 0:01:57]} 29. Nc5 {[%clk 0:00:22]}  Nxc5 {[%clk 0:01:58]} 30. exf7+ {[%clk 0:00:19]}  Kf8 {[%clk 0:01:58]} 31. Kh1 {[%clk 0:00:18]}  Ne4 {[%clk 0:01:58]} 32. Ne6+ {[%clk 0:00:16]}  Kxf7 {[%clk 0:01:57]} 33. Ng5+ {[%clk 0:00:14]}  Nxg5 {[%clk 0:01:52]} 34. hxg5 {[%clk 0:00:14]}  Rhe8 {[%clk 0:01:48]} 35. Rf1+ {[%clk 0:00:14]}  Kg6 {[%clk 0:01:47]} 36. Qc2+ {[%clk 0:00:09]}  Re4 {[%clk 0:01:47]} 37. Rbe1 {[%clk 0:00:09]}  Qe7 {[%clk 0:01:43]} 38. b4 {[%clk 0:00:05]}  axb4 {[%clk 0:01:42]} 39. axb4 {[%clk 0:00:06]}  Qxg5 {[%clk 0:01:41]} 40. Kg1 {[%clk 0:00:00]}  Qh4 {[%clk 0:01:39]} 0-1


[Site "https://www.chess.com"]

[Event "Titled Tuesday Blitz May 23 Late 2023"]
[White "Bluebaum, Matthias"]
[Black "NikaVolkov"]
[WhiteFideId "24651516"]
[WhiteElo "2639"]
[BlackElo "2629"]
[Result "1-0"]
[Round "02"]
[TimeControl "180+2"]
[Date "2023.05.23"]
[WhiteClock "0:00:36"]
[BlackClock "0:00:04"]

1. d4 {[%clk 0:03:00]}  d5 {[%clk 0:02:58]} 2. c4 {[%clk 0:03:01]}  e6 {[%clk 0:02:59]} 3. Nc3 {[%clk 0:03:01]}  Nf6 {[%clk 0:03:00]} 4. cxd5 {[%clk 0:03:02]}  exd5 {[%clk 0:03:00]} 5. Bf4 {[%clk 0:03:02]}  Be7 {[%clk 0:03:01]} 6. e3 {[%clk 0:03:02]}  O-O {[%clk 0:03:01]} 7. Bd3 {[%clk 0:03:02]}  Be6 {[%clk 0:03:02]} 8. h3 {[%clk 0:03:01]}  c5 {[%clk 0:03:02]} 9. Nf3 {[%clk 0:03:01]}  Nc6 {[%clk 0:03:02]} 10. O-O {[%clk 0:03:02]}  cxd4 {[%clk 0:03:02]} 11. Nxd4 {[%clk 0:02:56]}  Nxd4 {[%clk 0:03:02]} 12. exd4 {[%clk 0:02:56]}  Rc8 {[%clk 0:03:02]} 13. Qb3 {[%clk 0:02:56]}  Ne4 {[%clk 0:02:49]} 14. Bxe4 {[%clk 0:02:49]}  dxe4 {[%clk 0:02:50]} 15. d5 {[%clk 0:02:49]}  Rxc3 {[%clk 0:02:22]} 16. Qxc3 {[%clk 0:02:45]}  Qxd5 {[%clk 0:02:22]} 17. Rfd1 {[%clk 0:02:44]}  Qb5 {[%clk 0:02:16]} 18. a4 {[%clk 0:02:28]}  Qb4 {[%clk 0:02:12]} 19. Qxb4 {[%clk 0:02:13]}  Bxb4 {[%clk 0:02:13]} 20. Rac1 {[%clk 0:02:13]}  Ba5 {[%clk 0:02:04]} 21. Bc7 {[%clk 0:02:07]}  Bb4 {[%clk 0:01:12]} 22. Bd6 {[%clk 0:02:05]}  Bxd6 {[%clk 0:01:12]} 23. Rxd6 {[%clk 0:02:06]}  Rb8 {[%clk 0:01:12]} 24. Rcd1 {[%clk 0:02:02]}  Kf8 {[%clk 0:01:12]} 25. Rd8+ {[%clk 0:02:01]}  Rxd8 {[%clk 0:01:12]} 26. Rxd8+ {[%clk 0:02:02]}  Ke7 {[%clk 0:01:13]} 27. Rd4 {[%clk 0:01:44]}  f5 {[%clk 0:01:13]} 28. Kf1 {[%clk 0:01:44]}  Bd7 {[%clk 0:01:13]} 29. Ke2 {[%clk 0:01:39]}  Bc6 {[%clk 0:01:12]} 30. Ke3 {[%clk 0:01:38]}  g5 {[%clk 0:01:12]} 31. g3 {[%clk 0:01:33]}  a6 {[%clk 0:01:12]} 32. b3 {[%clk 0:01:27]}  Ke6 {[%clk 0:01:07]} 33. Rd8 {[%clk 0:01:27]}  Ke5 {[%clk 0:01:07]} 34. Rf8 {[%clk 0:01:28]}  h6 {[%clk 0:01:03]} 35. Rh8 {[%clk 0:01:13]}  f4+ {[%clk 0:01:03]} 36. gxf4+ {[%clk 0:01:13]}  gxf4+ {[%clk 0:01:04]} 37. Kd2 {[%clk 0:01:14]}  Bd5 {[%clk 0:00:46]} 38. b4 {[%clk 0:01:12]}  Kd4 {[%clk 0:00:46]} 39. Rxh6 {[%clk 0:01:11]}  e3+ {[%clk 0:00:46]} 40. fxe3+ {[%clk 0:01:12]}  fxe3+ {[%clk 0:00:47]} 41. Ke1 {[%clk 0:01:12]}  Bc6 {[%clk 0:00:36]} 42. Rxc6 {[%clk 0:00:36]}  bxc6 {[%clk 0:00:04]} 43. Ke2 {[%clk 0:00:36]} 1-0


[Site "https://www.chess.com"]

[Event "Titled Tuesday Blitz May 23 Late 2023"]
[White "Kleiman, Jake"]
[Black "Grischuk, Alexander"]
[WhiteFideId "2020041"]
[BlackFideId "4126025"]
[WhiteElo "2627"]
[BlackElo "2721"]
[Result "0-1"]
[Round "02"]
[TimeControl "180+2"]
[Date "2023.05.23"]
[WhiteClock "0:00:01"]
[BlackClock "0:00:04"]

1. e4 {[%clk 0:02:58]}  e6 {[%clk 0:02:58]} 2. d3 {[%clk 0:02:56]}  c5 {[%clk 0:02:57]} 3. Nf3 {[%clk 0:02:56]}  Nc6 {[%clk 0:02:58]} 4. g3 {[%clk 0:02:56]}  g6 {[%clk 0:02:57]} 5. Bg5 {[%clk 0:02:56]}  f6 {[%clk 0:02:45]} 6. Be3 {[%clk 0:02:56]}  d5 {[%clk 0:02:41]} 7. exd5 {[%clk 0:02:53]}  exd5 {[%clk 0:02:42]} 8. d4 {[%clk 0:02:53]}  c4 {[%clk 0:02:42]} 9. Bg2 {[%clk 0:02:53]}  Nge7 {[%clk 0:02:29]} 10. O-O {[%clk 0:02:51]}  Bg7 {[%clk 0:02:26]} 11. b3 {[%clk 0:02:34]}  cxb3 {[%clk 0:02:22]} 12. axb3 {[%clk 0:02:34]}  O-O {[%clk 0:02:23]} 13. Re1 {[%clk 0:02:30]}  Be6 {[%clk 0:02:15]} 14. Bh6 {[%clk 0:02:12]}  Qd7 {[%clk 0:02:15]} 15. Bxg7 {[%clk 0:02:13]}  Kxg7 {[%clk 0:02:16]} 16. c3 {[%clk 0:01:58]}  Bh3 {[%clk 0:02:01]} 17. Bh1 {[%clk 0:01:55]}  Rfe8 {[%clk 0:02:00]} 18. Nbd2 {[%clk 0:01:55]}  Nf5 {[%clk 0:01:59]} 19. Qc2 {[%clk 0:01:44]}  Nd6 {[%clk 0:01:53]} 20. c4 {[%clk 0:01:32]}  Bf5 {[%clk 0:01:46]} 21. Qb2 {[%clk 0:01:28]}  Nb4 {[%clk 0:01:39]} 22. Qc3 {[%clk 0:01:10]}  Rxe1+ {[%clk 0:01:22]} 23. Rxe1 {[%clk 0:01:08]}  a5 {[%clk 0:01:20]} 24. Nf1 {[%clk 0:00:40]}  Ne4 {[%clk 0:01:13]} 25. Qb2 {[%clk 0:00:39]}  Nd3 {[%clk 0:01:12]} 26. Qe2 {[%clk 0:00:35]}  Nxe1 {[%clk 0:00:57]} 27. Qxe1 {[%clk 0:00:33]}  Nd6 {[%clk 0:00:42]} 28. Ne3 {[%clk 0:00:26]}  Be4 {[%clk 0:00:42]} 29. Qc3 {[%clk 0:00:20]}  b5 {[%clk 0:00:33]} 30. cxb5 {[%clk 0:00:18]}  Nxb5 {[%clk 0:00:32]} 31. Qd2 {[%clk 0:00:17]}  a4 {[%clk 0:00:25]} 32. bxa4 {[%clk 0:00:17]}  Rxa4 {[%clk 0:00:26]} 33. Qb2 {[%clk 0:00:07]}  Nd6 {[%clk 0:00:23]} 34. Nd2 {[%clk 0:00:05]}  Bxh1 {[%clk 0:00:16]} 35. Kxh1 {[%clk 0:00:06]}  Qb5 {[%clk 0:00:11]} 36. Qc2 {[%clk 0:00:04]}  Nc4 {[%clk 0:00:08]} 37. Ndxc4 {[%clk 0:00:03]}  dxc4 {[%clk 0:00:09]} 38. Qe4 {[%clk 0:00:04]}  Ra7 {[%clk 0:00:08]} 39. d5 {[%clk 0:00:04]}  c3 {[%clk 0:00:08]} 40. Qd4 {[%clk 0:00:04]}  c2 {[%clk 0:00:04]} 41. Qc3 {[%clk 0:00:03]}  Qb1+ {[%clk 0:00:03]} 42. Kg2 {[%clk 0:00:01]}  c1=Q {[%clk 0:00:04]} 0-1


[Site "https://www.chess.com"]